bitfinex/quotes_ETHUSD_20230703
["timestamp","ask_amount","ask_price","bid_price","bid_amount"]
[1688352461823,2.51807837,1952.4,1952.0,13.72537]
[1688352461824,7.08716653,1952.4,1952.0,13.72537]
[1688352462061,4.56908816,1952.4,1952.2,10.24484]
[1688352462265,2.0,1952.5,1952.2,10.24484]
[1688352462434,2.0,1952.5,1952.2,11.16084]
[1688352463541,7.12166,1952.5,1952.2,11.16084]
[1688352464051,4.4878,1952.6,1952.2,15.094259]
[1688352464260,7.12071,1952.9,1952.2,14.178259]
[1688352464439,12.29168816,1952.8,1952.4,0.916]
[1688352464851,12.29168816,1952.8,1952.5,5.12158]
[1688352465167,17.41258816,1952.8,1952.5,5.12158]
[1688352466567,17.41258816,1952.8,1952.5,10.24321]
[1688352469557,19.60987698,1952.8,1952.5,10.24321]
[1688352469782,19.60987698,1952.8,1952.5,5.12158]
[1688352470856,19.60987698,1952.8,1952.1,4.44868761]
[1688352470857,22.17029698,1952.8,1952.1,4.44868761]
[1688352471094,0.01649128,1952.7,1952.2,3.89038208]
[1688352471394,12.80170816,1952.6,1952.2,8.12236]
[1688352471603,14.82300816,1952.6,1952.2,8.12236]
[1688352475396,14.82300816,1952.6,1952.2,13.24478]
[1688352479715,17.38368816,1952.6,1952.2,10.24478]
[1688352480021,14.82300816,1952.6,1952.2,10.24478]
[1688352480182,1.48230082,1952.5,1952.2,10.24478]
[1688352480510,7.68068816,1952.4,1952.2,5.12236]
[1688352480822,2.55878816,1952.4,1952.2,10.24478]
[1688352481021,2.55878816,1952.4,1952.2,12.80599]
[1688352481312,2.55878816,1952.4,1952.2,10.24478]
[1688352481613,7.68069816,1952.4,1952.2,10.24478]
[1688352481800,2.55878816,1952.4,1952.2,5.12236]
[1688352482003,2.55878816,1952.4,1952.2,10.24478]
[1688352482814,2.55878816,1952.4,1952.2,5.12236]
[1688352483007,7.68073816,1952.4,1952.2,5.12236]
[1688352483529,2.55878816,1952.4,1952.2,10.24478]
[1688352484322,7.68068816,1952.4,1952.2,5.12236]
[1688352484523,7.68068816,1952.4,1952.1,5.1225]
[1688352484524,12.80258816,1952.4,1952.1,5.1225]
[1688352484693,9.76698816,1952.4,1952.2,5.12235]
[1688352484909,9.76698816,1952.4,1952.2,10.24477]
[1688352487936,9.76698816,1952.4,1952.2,5.12235]
[1688352489229,14.88888816,1952.4,1952.2,5.12235]
[1688352489407,9.76698816,1952.4,1952.2,5.12235]
[1688352490608,7.68068816,1952.4,1952.2,5.12235]
[1688352491009,9.68798816,1952.4,1952.2,5.12235]
[1688352491596,14.80988816,1952.4,1952.2,5.12235]
[1688352491798,9.68798816,1952.4,1952.2,5.12235]
[1688352492299,0.1280672,1952.3,1952.2,5.12235]
[1688352492617,5.2502272,1952.3,1952.1,10.24504]
[1688352494523,5.2502272,1952.3,1952.1,9.24963067]
[1688352494924,0.1280672,1952.3,1952.1,9.24963067]
[1688352497517,0.1280672,1952.3,1952.1,4.12711067]
[1688352498619,9.3029219,1952.3,1952.0,5.1228]
[1688352498956,14.4251719,1952.3,1952.0,10.24555]
[1688352499553,9.3029219,1952.3,1952.0,12.80702]
[1688352499752,4.1806719,1952.3,1952.0,12.80702]
[1688352499928,9.3028519,1952.3,1952.0,12.80702]
[1688352504870,9.3028519,1952.3,1952.0,10.24555]
[1688352504871,3.48907335,1952.2,1952.0,10.24555]
[1688352505675,2.55878816,1952.2,1952.0,10.24555]
[1688352506283,2.55878816,1952.2,1951.8,1.86567719]
[1688352506502,2.1618,1952.1,1951.9,10.24642]
[1688352506783,4.72058816,1952.1,1951.9,12.80802]
[1688352506983,5.95973898,1952.1,1951.9,12.80802]
[1688352507154,11.08248898,1952.1,1951.9,10.24642]
[1688352507485,11.08250898,1952.1,1951.9,5.12321]
[1688352507782,5.95973898,1952.1,1951.9,5.12321]
[1688352508173,0.5959739,1952.0,1951.9,5.12321]
[1688352508481,0.5959739,1952.0,1951.7,6.86849865]
[1688352508649,0.5959739,1952.0,1951.8,10.24684]
[1688352508848,0.5959739,1952.0,1951.8,12.80857]
[1688352511465,0.5959739,1952.0,1951.8,10.24684]
[1688352512333,3.15476206,1952.0,1951.8,5.12337]
[1688352512588,0.31547621,1951.9,1951.6,8.12392]
[1688352512774,0.31547621,1951.9,1951.6,13.24781]
[1688352512950,8.27777206,1952.0,1951.6,13.24781]
[1688352513444,2.1269,1951.9,1951.6,13.24781]
[1688352514172,4.706,1951.9,1951.6,13.24781]
[1688352515156,2.55878816,1951.8,1951.5,5.1241]
[1688352515363,8.9645841,1951.8,1951.5,5.1241]
[1688352515582,14.0880541,1951.8,1951.5,10.24836]
[1688352515976,16.4585541,1951.8,1951.5,10.24836]
[1688352516555,18.4968541,1951.8,1951.5,10.24836]
[1688352516885,13.3732341,1951.8,1951.5,10.24836]
[1688352517107,13.3732341,1951.8,1951.5,12.81049]
[1688352517108,8.2497641,1951.8,1951.5,12.81049]
[1688352517385,6.96758816,1951.8,1951.5,12.81049]
[1688352517749,12.09112816,1951.8,1951.5,12.81049]
[1688352522904,17.21466816,1951.8,1951.5,10.24836]
[1688352524452,17.21466816,1951.8,1951.3,30.96288248]
[1688352524453,15.17636816,1951.8,1951.3,30.96288248]
[1688352524657,15.17636816,1951.8,1951.1,0.53568761]
[1688352524658,2.0971,1951.7,1951.1,5.80937]
[1688352524861,15.36929816,1951.6,1951.2,5.12496]
[1688352525215,15.36929816,1951.6,1951.1,6.87167017]
[1688352525419,4.5368,1951.5,1951.1,10.66079059]
[1688352525630,5.12457,1951.4,1951.1,5.53548059]
[1688352525964,12.80790816,1951.4,1951.1,5.53548059]
[1688352526152,17.36086198,1951.4,1951.0,5.12548]
[1688352526338,17.36086198,1951.4,1950.9,5.12571]
[1688352526339,10.2501,1951.2,1950.9,5.12571]
[1688352526548,2.55878816,1951.2,1951.0,10.2511]
[1688352526862,7.68386816,1951.2,1951.0,10.25102]
[1688352527062,12.80891816,1951.2,1950.9,5.1257]
[1688352527351,9.16563998,1951.2,1950.9,5.12581]
[1688352527763,11.75573998,1951.2,1950.9,10.25164]
[1688352528344,11.75573998,1951.2,1950.9,5.12581]
[1688352528537,16.88078998,1951.2,1950.9,5.12581]
[1688352528734,2.55878816,1951.1,1950.7,36.16397783]
[1688352528960,7.68432816,1951.1,1950.8,5.12595]
[1688352529181,7.68432816,1951.1,1950.8,10.25205]
[1688352529503,7.68410816,1951.1,1950.7,10.310794]
[1688352529655,9.68670816,1951.1,1950.7,12.873974]
[1688352530440,2.5901,1951.2,1950.7,14.81218964]
[1688352530686,0.01649128,1951.4,1951.0,12.8136]
[1688352530862,2.55878816,1951.3,1951.0,12.8136]
[1688352543660,7.68364816,1951.3,1951.0,12.8136]
[1688352543863,9.1828461,1951.3,1951.0,12.8136]
[1688352547163,14.3077061,1951.3,1951.0,10.25088]
[1688352547609,16.7902061,1951.3,1951.0,10.25088]
[1688352547816,16.7902061,1951.3,1950.7,1.733554]
[1688352548121,16.7902061,1951.3,1950.7,0.058454]
[1688352548122,3.72192061,1951.2,1950.7,0.058454]
[1688352548263,15.37238816,1951.1,1950.7,0.058454]
[1688352548978,2.0429,1951.0,1950.7,0.058454]
[1688352549179,12.81044816,1950.9,1950.7,0.058454]
[1688352549382,9.42623798,1950.9,1950.7,5.184794]
[1688352549686,4.30040798,1950.9,1950.7,10.311154]
[1688352550900,9.42624798,1950.9,1950.7,10.311154]
[1688352551166,4.30040798,1950.9,1950.7,10.311154]
[1688352552011,4.30040798,1950.9,1950.7,9.64332734]
[1688352552307,9.42628798,1950.9,1950.7,9.64332734]
[1688352553392,4.30040798,1950.9,1950.7,9.64332734]
[1688352553786,9.42625798,1950.9,1950.7,9.64332734]
[1688352554314,9.42625798,1950.9,1950.7,4.51696734]
[1688352554818,9.42625798,1950.9,1950.6,7.68977]
[1688352554819,0.9426258,1950.8,1950.6,10.25297]
[1688352555003,8.62765396,1950.8,1950.6,5.12647]
[1688352555314,13.75389396,1950.8,1950.5,10.25351]
[1688352555469,15.83319396,1950.8,1950.5,5.12673]
[1688352556612,15.83319396,1950.8,1950.4,8.22702]
[1688352557305,4.14210756,1950.7,1950.4,0.1]
[1688352557484,10.25324,1950.6,1950.4,0.1]
[1688352557932,2.55878816,1950.5,1950.4,0.1]
[1688352558148,15.37600816,1950.5,1950.4,0.1]
[1688352558433,17.37786998,1950.5,1950.4,0.1]
[1688352559603,22.37786998,1950.5,1950.4,0.1]
[1688352559939,22.37786998,1950.5,1950.4,5.22715]
[1688352559940,9.56064998,1950.5,1950.4,5.22715]
[1688352560227,19.81442998,1950.5,1950.4,0.1]
[1688352561029,22.37786998,1950.5,1950.4,0.1]
[1688352562547,9.56064998,1950.5,1950.4,0.1]
[1688352563401,19.81442998,1950.5,1950.4,0.1]
[1688352564013,14.68753998,1950.5,1950.4,0.1]
[1688352565767,8.6164094,1950.7,1950.4,12.91787]
[1688352565768,11.0532194,1950.7,1950.4,12.91787]
[1688352565910,13.61200756,1950.7,1950.4,12.91787]
[1688352566646,2.56299,1950.9,1950.4,13.83787]
[1688352566647,2.0,1950.9,1950.4,13.83787]
[1688352566852,12.23281816,1950.9,1950.4,13.83787]
[1688352567149,0.00692085,1950.8,1950.4,13.83787]
[1688352567354,12.64736091,1950.9,1950.4,13.83787]
[1688352567355,12.64736091,1950.9,1950.4,12.91787]
[1688352567652,5.1261,1950.8,1950.4,12.91787]
[1688352569617,10.23281816,1950.9,1950.4,12.91787]
[1688352570523,12.23281816,1950.9,1950.4,12.91787]
[1688352571516,17.35876816,1950.9,1950.4,12.91787]
[1688352573472,5.10688816,1950.9,1950.4,12.91787]
[1688352573626,5.10688816,1950.9,1950.5,2.209787]
[1688352573967,7.10688816,1950.9,1950.6,12.81644]
[1688352574458,4.55878816,1950.9,1950.6,12.81644]
[1688352577652,9.68462816,1950.9,1950.6,5.12657]
[1688352577861,0.96846282,1950.8,1950.6,5.12657]
[1688352578789,14.81061816,1950.9,1950.6,10.25319]
[1688352578993,4.55878816,1950.9,1950.6,12.8165]
[1688352579189,5.0,1951.0,1950.6,13.7365]
[1688352579396,0.00921115,1950.9,1950.6,13.7365]
[1688352579886,2.55878816,1951.0,1950.6,13.7365]
[1688352580191,3.97844698,1951.0,1950.6,13.7365]
[1688352580700,3.97844698,1951.0,1950.6,12.8165]
[1688352582068,0.00524347,1950.9,1950.6,12.8165]
[1688352582773,3.97844698,1951.0,1950.6,12.8165]
[1688352585065,9.10405698,1951.0,1950.6,12.8165]
[1688352585376,8.59503386,1950.9,1950.4,5.22707]
[1688352585701,18.29828386,1950.9,1950.4,5.22707]
[1688352585860,18.29828386,1950.9,1950.4,10.35422]
[1688352586260,18.29828386,1950.9,1950.4,5.22707]
[1688352586261,2.5388,1950.8,1950.4,5.22707]
[1688352586461,2.55878816,1950.7,1950.4,5.22707]
[1688352586689,3.06854698,1950.7,1950.4,5.22707]
[1688352587278,3.06854698,1950.7,1950.4,10.35422]
[1688352587656,8.19493698,1950.7,1950.4,0.1]
[1688352587814,5.08304698,1950.7,1950.4,0.1]
[1688352588102,0.5083047,1950.6,1950.4,10.35399]
[1688352588303,2.55878816,1950.5,1950.4,10.35399]
[1688352588503,2.55878816,1950.5,1950.4,12.91756]
[1688352591424,0.5083047,1950.6,1950.4,12.91756]
[1688352591589,2.55878816,1950.6,1950.4,12.91756]
[1688352598212,2.0145,1950.7,1950.4,12.91756]
[1688352599133,2.55878816,1950.6,1950.4,10.35399]
[1688352599626,7.68547816,1950.6,1950.4,0.1]
[1688352599989,12.81216816,1950.6,1950.4,0.1]
[1688352600190,1.28121682,1950.5,1950.4,0.1]
[1688352600448,3.84000498,1950.5,1950.4,0.1]
[1688352600928,3.84000498,1950.5,1950.4,0.05]
[1688352601090,14.09378498,1950.5,1950.4,0.05]
[1688352602047,3.84000498,1950.5,1950.4,0.05]
[1688352602340,8.96689498,1950.5,1950.4,0.05]
[1688352602535,3.84000498,1950.5,1950.4,0.05]
[1688352602741,3.84000498,1950.5,1950.4,5.17715]
[1688352603230,5.0,1950.6,1950.4,0.05]
[1688352603399,7.55878816,1950.6,1950.4,12.86787]
[1688352603603,5.0,1950.6,1950.4,12.86787]
[1688352603804,5.0,1950.6,1950.5,0.92]
[1688352604100,5.0,1950.6,1950.5,13.73722]
[1688352604299,5.0,1950.6,1950.5,15.372299]
[1688352604543,2.1581,1950.9,1950.5,15.372299]
[1688352604743,4.71688816,1950.9,1950.5,13.73722]
[1688352608353,4.71688816,1950.9,1950.5,12.81722]
[1688352609120,2.55878816,1950.8,1950.5,10.25378]
[1688352609315,7.68500816,1950.8,1950.5,5.12689]
[1688352609835,0.76850082,1950.7,1950.5,5.12689]
[1688352610043,3.32728898,1950.7,1950.5,10.25378]
[1688352611419,3.32728898,1950.7,1950.5,5.12689]
[1688352613634,3.32728898,1950.7,1950.5,10.25378]
[1688352613823,2.55878816,1950.7,1950.5,12.81722]
[1688352619852,2.1581,1950.9,1950.5,12.81722]
[1688352620055,2.55878816,1950.8,1950.5,12.81722]
[1688352623084,5.41707438,1951.2,1950.7,0.916]
[1688352623283,2.55878816,1951.1,1950.8,12.81492]
[1688352626578,4.5637,1951.2,1950.8,12.81492]
[1688352626784,4.95438816,1951.2,1950.8,12.81492]
[1688352626986,4.95438816,1951.2,1950.8,14.444326]
[1688352627694,2.3956,1951.2,1950.9,0.919]
[1688352627980,5.0,1951.4,1951.0,13.73392]
[1688352628192,2.55878816,1951.3,1951.0,13.73392]
[1688352628768,2.55878816,1951.3,1951.0,12.81392]
[1688352629472,3.26320698,1951.3,1951.0,12.81392]
[1688352635323,2.55878816,1951.3,1951.0,12.81392]
[1688352639821,3.47278816,1951.2,1950.9,5.12569]
[1688352639988,15.64362,1951.1,1950.7,10.25241]
[1688352640191,1.564362,1951.0,1950.7,5.12618]
[1688352640498,7.68461816,1950.9,1950.7,5.12618]
[1688352640704,2.55878816,1950.9,1950.7,5.12618]
[1688352641101,2.55878816,1950.9,1950.7,10.15254]
[1688352641413,4.20660818,1950.9,1950.7,10.15254]
[1688352642480,9.33244818,1950.9,1950.7,10.15254]
[1688352643084,4.20660818,1950.9,1950.7,10.15254]
[1688352643823,4.20660818,1950.9,1950.7,12.71572]
[1688352645686,2.55878816,1950.9,1950.7,12.71572]
[1688352656314,2.55878816,1950.9,1950.7,10.15254]
[1688352662876,2.55878816,1950.9,1950.7,5.02618]
[1688352663061,7.68466816,1950.9,1950.6,5.12644]
[1688352663264,8.96570898,1950.9,1950.7,5.12634]
[1688352663634,8.96570898,1950.9,1950.7,10.2527]
[1688352664375,6.05432898,1950.9,1950.7,10.2527]
[1688352665767,4.77328816,1950.9,1950.7,10.2527]
[1688352666158,2.55878816,1950.9,1950.7,10.2527]
[1688352666776,2.55878816,1950.9,1950.7,12.81588]
[1688352667885,2.55878816,1950.9,1950.7,5.12634]
[1688352668180,2.55878816,1950.9,1950.6,5.12644]
[1688352669253,4.05727998,1950.9,1950.6,5.12644]
[1688352669452,4.05727998,1950.9,1950.6,10.25306]
[1688352670329,2.55878816,1950.9,1950.6,10.25306]
[1688352670785,7.68463816,1950.9,1950.6,10.25306]
[1688352673312,7.68463816,1950.9,1950.6,12.81637]
[1688352673596,2.55878816,1950.9,1950.6,12.81637]
[1688352674311,7.68466816,1950.9,1950.6,12.81637]
[1688352678308,9.18318098,1950.9,1950.6,12.81637]
[1688352679374,9.18318098,1950.9,1950.6,5.12644]
[1688352679616,9.18318098,1950.9,1950.4,0.05]
[1688352679617,4.05730098,1950.9,1950.4,0.05]
[1688352679801,4.7023,1950.8,1950.5,5.12675]
[1688352680112,2.55878816,1950.7,1950.5,5.12675]
[1688352680461,2.55878816,1950.7,1950.5,10.25364]
[1688352688291,2.55878816,1950.7,1950.5,12.81708]
[1688352689619,2.55878816,1950.7,1950.5,13.73208]
[1688352689828,5.12599,1950.9,1950.5,13.73208]
[1688352690130,2.55878816,1950.8,1950.5,13.73208]
[1688352692204,3.83986398,1950.8,1950.5,13.73208]
[1688352692411,5.85836398,1950.8,1950.5,13.73208]
[1688352693550,10.98448398,1950.8,1950.5,13.73208]
[1688352696104,10.98448398,1950.8,1950.5,11.16864]
[1688352696631,16.11060398,1950.8,1950.5,5.12675]
[1688352696832,1.6110604,1950.7,1950.5,5.12675]
[1688352697149,4.16984856,1950.7,1950.5,5.12675]
[1688352697346,4.16984856,1950.7,1950.5,10.25364]
[1688352700478,4.16984856,1950.7,1950.5,5.12675]
[1688352701169,4.16984856,1950.7,1950.5,10.25364]
[1688352701333,2.55878816,1950.7,1950.5,5.12675]
[1688352703165,2.55878816,1950.7,1950.5,10.25364]
[1688352703353,2.55878816,1950.7,1950.5,5.12675]
[1688352704468,7.68516816,1950.7,1950.4,10.30392]
[1688352704861,10.04026816,1950.7,1950.4,10.30392]
[1688352705169,10.04026816,1950.7,1950.4,0.05]
[1688352705170,3.56281498,1950.6,1950.4,0.05]
[1688352705347,5.12689,1950.5,1950.4,0.05]
[1688352705544,7.68567816,1950.5,1950.4,0.05]
[1688352705765,12.81256816,1950.5,1950.4,0.05]
[1688352706271,7.68567816,1950.5,1950.4,0.05]
[1688352706447,9.28056266,1950.5,1950.4,0.05]
[1688352707344,14.40745266,1950.5,1950.4,0.05]
[1688352708536,16.97089266,1950.5,1950.4,0.05]
[1688352708759,18.97089266,1950.5,1950.4,0.05]
[1688352713576,16.40745266,1950.5,1950.4,0.05]
[1688352718166,18.97089266,1950.5,1950.4,0.05]
[1688352722048,16.40745266,1950.5,1950.4,0.05]
[1688352722385,11.28056266,1950.5,1950.4,0.05]
[1688352722758,16.40745266,1950.5,1950.4,0.05]
[1688352723140,4.55878816,1950.5,1950.4,0.05]
[1688352723349,2.55878816,1950.5,1950.4,10.3043]
[1688352723754,2.55878816,1950.5,1950.4,12.86787]
[1688352724247,2.55878816,1950.5,1950.4,10.3043]
[1688352724450,9.3551,1950.7,1950.4,10.3043]
[1688352724651,2.55878816,1950.6,1950.4,10.3043]
[1688352727421,7.68542816,1950.6,1950.4,10.3043]
[1688352727708,7.68542816,1950.6,1950.4,5.17715]
[1688352728675,12.81206816,1950.6,1950.4,5.17715]
[1688352730319,5.93114277,1950.9,1950.4,6.29959]
[1688352730320,5.41465149,1950.9,1950.4,6.29959]
[1688352730618,2.55878816,1950.8,1950.4,13.99031]
[1688352730798,7.68491816,1950.8,1950.4,13.99031]
[1688352731004,7.68491816,1950.8,1950.6,5.12662]
[1688352732600,7.68491816,1950.8,1950.5,5.12681]
[1688352732812,7.68491816,1950.8,1950.5,11.16661]
[1688352735495,9.69491816,1950.8,1950.5,11.16661]
[1688352738853,9.69491816,1950.8,1950.5,13.73005]
[1688352739366,9.69491816,1950.8,1950.5,12.81705]
[1688352749872,4.56878816,1950.8,1950.5,12.81705]
[1688352750059,9.69492816,1950.8,1950.5,12.81705]
[1688352750463,4.56878816,1950.8,1950.5,12.81705]
[1688352750761,9.69492816,1950.8,1950.5,12.81705]
[1688352751936,4.56878816,1950.8,1950.5,12.81705]
[1688352752140,4.56878816,1950.8,1950.6,0.913]
[1688352752434,2.55878816,1950.8,1950.7,10.25272]
[1688352755287,2.55878816,1950.8,1950.6,6.03941]
[1688352755441,4.63308816,1950.8,1950.6,5.12641]
[1688352755940,4.63308816,1950.8,1950.6,10.25292]
[1688352757580,9.75920816,1950.8,1950.6,10.25292]
[1688352761681,9.75920816,1950.8,1950.6,10.20292]
[1688352766296,11.24772698,1950.8,1950.4,0.05]
[1688352766594,18.93687698,1950.8,1950.4,5.17702]
[1688352767679,21.37382698,1950.8,1950.4,5.17702]
[1688352768205,21.37382698,1950.8,1950.4,10.30417]
[1688352771605,21.37382698,1950.8,1950.4,12.86774]
[1688352771822,2.1373827,1950.7,1950.4,12.86774]
[1688352771957,2.55878816,1950.6,1950.4,12.86774]
[1688352772168,4.60988816,1950.6,1950.4,12.86774]
[1688352776906,0.01649128,1950.8,1950.4,11.21917]
[1688352777078,5.0,1950.9,1950.7,0.92]
[1688352777281,7.55878816,1950.9,1950.8,10.2522]
[1688352777603,2.55878816,1950.9,1950.8,10.2522]
[1688352779616,17.85367,1951.1,1950.8,10.2522]
[1688352779781,17.85367,1951.1,1950.8,12.81525]
[1688352779782,2.55878816,1951.0,1950.8,12.81525]
[1688352780267,2.55878816,1951.0,1950.8,10.2522]
[1688352781906,7.68438816,1951.0,1950.8,10.2522]
[1688352782811,9.81418816,1951.0,1950.8,10.2522]
[1688352783165,12.06842998,1951.0,1950.8,10.2522]
[1688352783309,12.06842998,1951.0,1950.8,5.1261]
[1688352784417,12.06842998,1951.0,1950.8,10.2522]
[1688352784717,9.81418816,1951.0,1950.8,10.2522]
[1688352785824,5.0,1951.1,1950.8,10.2522]
[1688352786032,5.0,1951.1,1950.8,12.81525]
[1688352786526,5.0,1951.1,1950.8,13.08298971]
[1688352786674,2.4416,1951.5,1950.8,12.81525]
[1688352786675,2.1826,1951.4,1950.8,12.81525]
[1688352786881,2.1826,1951.4,1951.0,10.25104]
[1688352786882,2.55878816,1951.3,1951.0,10.25104]
[1688352787085,2.55878816,1951.3,1951.0,13.72982]
[1688352787538,2.4416,1951.5,1951.1,0.916]
[1688352787832,2.4416,1951.5,1951.2,12.81247]
[1688352787833,2.55878816,1951.4,1951.2,12.81247]
[1688352788013,2.55878816,1951.5,1951.2,12.81247]
[1688352790428,2.55878816,1951.5,1951.4,5.12452]
[1688352790740,2.55878816,1951.5,1951.4,10.24904]
[1688352796550,3.72681798,1951.5,1951.4,5.12452]
[1688352799315,8.85107798,1951.5,1951.2,5.12494]
[1688352800006,8.85107798,1951.5,1951.2,10.24999]
[1688352811277,9.26671782,1951.5,1951.2,10.24999]
[1688352812881,8.85107798,1951.5,1951.2,12.81251]
[1688352817825,3.46038724,1951.4,1951.0,5.12541]
[1688352818018,18.37805724,1951.4,1951.1,5.12516]
[1688352818613,20.94031724,1951.4,1950.9,4.12573]
[1688352818777,1.83780572,1951.3,1951.0,10.2511]
[1688352819112,7.68383816,1951.2,1951.0,10.2511]
[1688352819317,9.77473816,1951.2,1951.0,10.2511]
[1688352819464,4.64968816,1951.2,1951.0,10.2511]
[1688352820592,4.64968816,1951.2,1951.0,12.81388]
[1688352820808,5.87401316,1951.2,1951.0,12.81388]
[1688352829064,5.10801612,1951.2,1950.7,0.918]
[1688352829316,5.12557,1951.0,1950.7,5.12636]
[1688352829517,2.55878816,1950.9,1950.7,5.12636]
[1688352829738,2.55878816,1950.9,1950.7,10.25272]
[1688352830103,4.60658816,1950.9,1950.7,5.12636]
[1688352830300,10.70570398,1950.9,1950.4,1.51335766]
[1688352830604,10.70570398,1950.9,1950.4,12.86771]
[1688352830844,15.83160398,1950.9,1950.4,12.86771]
[1688352831011,2.4048,1950.8,1950.4,12.86771]
[1688352831215,2.55878816,1950.7,1950.4,12.86771]
[1688352832123,2.55878816,1950.7,1950.4,14.502846]
[1688352832740,2.55878816,1950.7,1950.4,14.77058571]
[1688352833870,2.5266,1951.0,1950.5,0.919]
[1688352834014,2.55878816,1950.9,1950.6,12.81642]
[1688352836518,4.76568816,1950.9,1950.6,12.81642]
[1688352844704,9.89152816,1950.9,1950.6,12.81642]
[1688352845206,4.76568816,1950.9,1950.6,13.73442]
[1688352846105,4.76568816,1950.9,1950.6,11.17114]
[1688352846411,4.76568816,1950.9,1950.6,13.73442]
[1688352847215,2.5266,1951.0,1950.6,15.364198]
[1688352847418,2.55878816,1951.0,1950.7,0.92]
[1688352847708,2.55878816,1951.0,1950.8,10.2522]
[1688352848074,2.55878816,1951.0,1950.8,12.81525]
[1688352853918,1.224325,1951.2,1950.8,14.096775]
[1688352854093,3.400125,1951.2,1950.8,15.012775]
[1688352856112,3.400125,1951.2,1950.9,0.92]
[1688352856344,3.400125,1951.2,1951.0,12.81392]
[1688352858394,2.55878816,1951.1,1951.0,10.25114]
[1688352866545,2.55878816,1951.1,1951.0,9.59510661]
[1688352883408,3.66718648,1951.1,1951.0,9.59510661]
[1688352885399,2.55878816,1951.1,1951.0,9.59510661]
[1688352901022,2.55878816,1951.1,1950.6,2.21608761]
[1688352901224,2.55878816,1951.1,1950.9,5.12568]
[1688352907551,0.01649128,1951.0,1950.7,5.12635]
[1688352907875,7.68461816,1950.9,1950.7,10.25271]
[1688352908079,7.68461816,1950.9,1950.7,5.12635]
[1688352908247,2.55878816,1950.9,1950.7,10.25271]
[1688352908449,2.55878816,1950.9,1950.7,12.81589]
[1688352909460,2.21679128,1951.0,1950.7,12.81589]
[1688352909662,4.75908816,1951.0,1950.7,12.81589]
[1688352909887,2.55878816,1951.0,1950.7,12.81589]
[1688352910451,2.5297,1951.1,1950.7,14.445105]
[1688352910689,2.55878816,1951.1,1950.7,15.358105]
[1688352911699,2.55878816,1951.1,1950.7,15.62584471]
[1688352912054,1.224325,1951.2,1950.7,15.62584471]
[1688352912266,1.224325,1951.2,1950.8,2.45370553]
[1688352912599,1.224325,1951.2,1951.1,13.73127]
[1688352913578,1.224325,1951.2,1951.1,12.81327]
[1688352914253,1.224325,1951.2,1951.1,10.25062]
[1688352915760,1.224325,1951.2,1951.1,12.81327]
[1688352916356,1.224325,1951.2,1951.1,14.350875]
[1688352917695,1.224325,1951.2,1951.1,15.268875]
[1688352922506,1.224325,1951.2,1951.1,18.268875]
[1688352923366,1.224325,1951.2,1951.1,17.350875]
[1688352924466,1.224325,1951.2,1951.1,23.658875]
[1688352925579,1.224325,1951.2,1951.1,23.92661471]
[1688352926592,1.224325,1951.2,1951.1,24.81746762]
[1688352926792,1.224325,1951.2,1951.1,25.29746762]
[1688352927965,1.224325,1951.2,1951.1,24.40661471]
[1688352929584,1.224325,1951.2,1951.1,25.29746825]
[1688352929789,1.224325,1951.2,1951.1,24.40661471]
[1688352933311,4.4888,1952.0,1951.1,26.96540287]
[1688352933470,4.4888,1952.0,1951.5,0.919]
[1688352933708,4.4888,1952.0,1951.6,15.37162]
[1688352939620,2.0334,1952.0,1951.6,15.37162]
[1688352942163,2.0334,1952.0,1951.6,15.79050049]
[1688352951965,2.0334,1952.0,1951.8,20.7634]
[1688352952277,0.1280672,1952.2,1952.0,12.80737]
[1688352952479,2.1763,1952.1,1952.0,12.80737]
[1688352957786,0.1280672,1952.2,1952.0,12.80737]
[1688352960249,0.1280672,1952.2,1952.0,10.2459]
[1688352960664,0.1280672,1952.2,1952.0,12.80737]
[1688352965253,0.1280672,1952.2,1952.0,14.89383202]
[1688352968177,0.1280672,1952.2,1952.0,14.88383202]
[1688352972459,0.1280672,1952.2,1952.0,15.79683202]
[1688352974772,0.1280672,1952.2,1952.1,13.7267]
[1688352974969,0.1280672,1952.2,1952.1,12.8067]
[1688352975177,0.1280672,1952.2,1952.1,14.6439632]
[1688352977091,0.1280672,1952.2,1952.1,17.6439632]
[1688352977758,0.1280672,1952.2,1952.1,15.8067]
[1688352985467,0.1280672,1952.2,1952.1,16.07443971]
[1688352985764,0.1280672,1952.2,1952.1,22.11711971]
[1688352991124,0.1280672,1952.2,1952.1,19.11711971]
[1688352991297,0.1280672,1952.2,1952.1,12.8067]
[1688352992179,0.1280672,1952.2,1952.1,5.12268]
[1688352992434,0.1280672,1952.2,1952.0,5.12273]
[1688352992435,2.68685536,1952.2,1952.0,5.12273]
[1688352992583,2.68685536,1952.2,1951.9,5.12306]
[1688352992584,0.26868554,1952.1,1951.9,5.12306]
[1688352992778,0.26868554,1952.1,1951.9,10.24609]
[1688352993928,5.39138554,1952.1,1951.9,10.24609]
[1688352994112,5.39138554,1952.1,1951.9,5.12303]
[1688352994482,0.26868554,1952.1,1951.9,10.24624]
[1688352994819,0.26868554,1952.1,1951.9,12.80784]
[1688352997228,2.70334664,1952.2,1951.9,12.80784]
[1688352997828,0.911,1952.0,1951.5,5.12417]
[1688352998135,0.911,1952.0,1951.5,5.12423]
[1688352998136,16.28704816,1951.9,1951.5,5.12423]
[1688352998348,5.12373,1951.7,1951.5,5.12423]
[1688352998501,10.24746,1951.7,1951.5,5.12423]
[1688352998697,10.24746,1951.7,1951.4,10.2488]
[1688352998931,5.12373,1951.7,1951.4,10.2488]
[1688352999249,7.57873,1951.7,1951.4,10.2488]
[1688353000197,7.57873,1951.7,1951.4,12.81106]
[1688353000403,9.10383448,1951.7,1951.4,12.81106]
[1688353003648,2.455,1951.7,1951.4,12.81106]
[1688353003849,2.455,1951.7,1951.4,13.07879971]
[1688353004012,4.6087,1951.7,1951.4,13.07879971]
[1688353004441,4.6087,1951.7,1951.4,12.81106]
[1688353007958,9.73246,1951.7,1951.4,12.81106]
[1688353010726,4.6087,1951.7,1951.4,12.81106]
[1688353010960,4.6087,1951.7,1951.4,14.092166]